fUST/lending_fUST_20250605
["ID","MTS","AMOUNT","RATE_DAILY","PERIOD"]
[364293811,1749060640625,-420.0,0.00021118,2]
[364293813,1749060640634,-296.35003313,0.00021118,2]
[364293815,1749060640644,-440.0,0.00021118,2]
[364293817,1749060640653,-440.0,0.00021118,2]
[364293819,1749060640662,-440.0,0.00021118,2]
[364293821,1749060640672,-420.0,0.00021118,2]
[364293823,1749060640681,-440.0,0.00021118,2]
[364293825,1749060640690,-420.0,0.00021118,2]
[364293827,1749060640700,-440.0,0.00021118,2]
[364293829,1749060640709,-440.0,0.00021118,2]
[364293831,1749060640718,-390.0,0.00021118,2]
[364293833,1749060640727,-258.77230431,0.00021118,2]
[364293835,1749060640736,-216.0858518,0.00021118,2]
[364293837,1749060640746,-403.83483562,0.00021118,2]
[364293838,1749060640755,-440.0,0.00021118,2]
[364293840,1749060640765,-190.08815,0.00021118,2]
[364293843,1749060640775,-500.0,0.00021118,2]
[364293845,1749060640784,-500.0,0.00021144,2]
[364293846,1749060640793,-500.0,0.00021144,2]
[364293848,1749060640802,-500.0,0.00021144,2]
[364293850,1749060640812,-1400.0,0.00021164,2]
[364293852,1749060640821,-500.0,0.00021172,2]
[364293854,1749060640831,-500.0,0.00021172,2]
[364293856,1749060640841,-162.0,0.00021172,2]
[364293858,1749060640850,-440.0,0.00021173,2]
[364293860,1749060640859,-506.17,0.00021173,2]
[364293862,1749060640869,-440.0,0.00021173,2]
[364293864,1749060640878,-440.0,0.00021173,2]
[364293866,1749060640888,-440.0,0.00021173,2]
[364293867,1749060640898,-440.0,0.00021173,2]
[364293868,1749060640907,-440.0,0.00021173,2]
[364293869,1749060640917,-440.0,0.00021173,2]
[364293870,1749060640927,-440.0,0.00021173,2]
[364293871,1749060640936,-440.0,0.00021173,2]
[364293872,1749060640946,-484.89476985,0.00021173,2]
[364293873,1749060640955,-2996.06106417,0.00021176,4]
[364293874,1749060640965,-500.0,0.00021199,2]
[364293875,1749060640974,-500.0,0.00021227,2]
[364293876,1749060640985,-500.0,0.00021254,2]
[364293877,1749060640997,-500.0,0.00021281,2]
[364293878,1749060641006,-950.55113301,0.00021304,2]
[364293879,1749060641016,-531.27793115,0.00021309,2]
[364293880,1749060641025,-2996.06106417,0.00021314,5]
[364293881,1749060641035,-153.0,0.00021315,2]
[364293882,1749060641045,-153.0,0.00021315,2]
[364293883,1749060641055,-572.7197194,0.00021315,2]
[364293884,1749060641065,-158.575084,0.00021315,2]
[364293885,1749060641074,-176.6037853,0.00021315,2]
[364293886,1749060641083,-158.575084,0.00021315,2]
[364293887,1749060641093,-176.6037853,0.00021315,2]
[364293888,1749060641104,-158.575084,0.00021315,2]
[364293889,1749060641114,-440.0,0.00021389,2]
[364293890,1749060641123,-440.0,0.00021389,2]
[364293891,1749060641133,-440.0,0.0002139,2]
[364293892,1749060641143,-802.75,0.0002139,2]
[364293893,1749060641152,-733.96,0.0002139,2]
[364293894,1749060641162,-440.0,0.0002139,2]
[364293895,1749060641171,-440.0,0.0002139,2]
[364293896,1749060641183,-440.0,0.0002139,2]
[364293897,1749060641194,-440.0,0.0002139,2]
[364293898,1749060641203,-1948.38,0.0002139,2]
[364293900,1749060641213,-440.0,0.0002139,2]
[364293902,1749060641223,-440.0,0.0002139,2]
[364293904,1749060641232,-440.0,0.0002139,2]
[364293906,1749060641243,-440.0,0.0002139,2]
[364293908,1749060641252,-440.0,0.0002139,2]
[364293909,1749060641263,-440.0,0.0002139,2]
[364293911,1749060641273,-440.0,0.0002139,2]
[364293913,1749060641282,-440.0,0.0002139,2]
[364293915,1749060641291,-440.0,0.0002139,2]
[364293917,1749060641301,-475.57,0.0002139,2]
[364293919,1749060641311,-624.88,0.0002139,2]
[364293921,1749060641320,-440.0,0.0002139,2]
[364293923,1749060641329,-440.0,0.0002139,2]
[364293925,1749060641339,-440.0,0.0002139,2]
[364293927,1749060641348,-410.0,0.0002139,2]
[364293928,1749060641358,-440.0,0.0002139,2]
[364293929,1749060641368,-410.0,0.00021391,2]
[364293930,1749060641378,-440.0,0.00021391,2]
[364293931,1749060641388,-410.0,0.00021391,2]
[364293932,1749060641397,-410.0,0.00021391,2]
[364293934,1749060641406,-410.0,0.00021391,2]
[364293936,1749060641416,-410.0,0.00021391,2]
[364293938,1749060641425,-477.88930111,0.00021391,2]
[364293940,1749060641436,-440.0,0.00021391,2]
[364293941,1749060641445,-410.0,0.00021391,2]
[364293942,1749060641455,-440.0,0.00021391,2]
[364293944,1749060641465,-302.24617099,0.00021391,2]
[364293946,1749060641475,-440.0,0.00021391,2]
[364293948,1749060641483,-410.0,0.00021391,2]
[364293950,1749060641494,-440.0,0.00021391,2]
[364293951,1749060641503,-440.0,0.00021391,2]
[364293953,1749060641512,-440.0,0.00021391,2]
[364293955,1749060641522,-440.0,0.00021391,2]
[364293957,1749060641531,-377.3,0.00021391,2]
[364293959,1749060641541,-440.0,0.00021391,2]
[364293961,1749060641550,-440.0,0.00021391,2]
[364293963,1749060641559,-440.0,0.00021391,2]
[364293965,1749060641569,-267.90158132,0.00021391,2]
[364293967,1749060641579,-410.0,0.00021391,2]
[364293969,1749060641588,-440.0,0.00021391,2]
[364293971,1749060641598,-410.0,0.00021391,2]
[364293973,1749060641608,-410.0,0.00021391,2]
[364293975,1749060641618,-400.0,0.00021391,2]
[364293977,1749060641627,-440.0,0.00021391,2]
[364293979,1749060641637,-410.0,0.00021391,2]
[364293981,1749060641647,-410.0,0.00021391,2]
[364293983,1749060641656,-440.0,0.00021391,2]
[364293985,1749060641666,-410.0,0.00021391,2]
[364293987,1749060641676,-440.0,0.00021391,2]
[364293989,1749060641685,-410.0,0.00021391,2]
[364293991,1749060641694,-440.0,0.00021391,2]
[364293993,1749060641705,-410.0,0.00021391,2]
[364293995,1749060641714,-478.61877372,0.00021391,2]
[364293997,1749060641723,-410.0,0.00021391,2]
[364293999,1749060641732,-410.0,0.00021391,2]
[364294001,1749060641741,-405.15,0.00021391,2]
[364294003,1749060641750,-420.94828896,0.00021391,2]
[364294005,1749060641759,-278.49,0.00021391,2]
[364294007,1749060641768,-240.90046319,0.00021391,2]
[364294009,1749060641777,-440.0,0.00021391,2]
[364294011,1749060641787,-440.0,0.00021391,2]
[364294013,1749060641798,-440.0,0.00021391,2]
[364294015,1749060641807,-440.0,0.00021391,2]
[364294017,1749060641816,-484.06,0.00021391,2]
[364294019,1749060641825,-440.0,0.00021391,2]
[364294021,1749060641834,-440.0,0.00021391,2]
[364294023,1749060641843,-440.0,0.00021391,2]
[364294025,1749060641852,-440.0,0.00021391,2]
[364294026,1749060641861,-440.0,0.00021391,2]
[364294028,1749060641871,-440.0,0.00021391,2]
[364294030,1749060641880,-565.05,0.00021391,2]
[364294032,1749060641890,-440.0,0.00021391,2]
[364294034,1749060641899,-440.0,0.00021391,2]
[364294036,1749060641910,-151.0,0.00021391,2]
[364294038,1749060641919,-440.0,0.00021391,2]
[364294040,1749060641928,-151.0,0.00021391,2]
[364294042,1749060641937,-440.0,0.00021391,2]
[364294044,1749060641946,-519.90961659,0.00021391,2]
[364294046,1749060641955,-440.0,0.00021391,2]
[364294048,1749060641965,-440.0,0.00021391,2]
[364294060,1749060642061,-440.0,0.00021391,2]
[364294062,1749060642071,-386.46763862,0.00021391,2]
[364294063,1749060642081,-440.0,0.00021391,2]
[364294065,1749060642091,-440.0,0.00021391,2]
[364294067,1749060642101,-307.08,0.00021391,2]
[364294068,1749060642111,-440.0,0.00021391,2]
[364294069,1749060642121,-401.50454324,0.00021391,2]
[364294070,1749060642130,-151.0,0.00021391,2]
[364294071,1749060642139,-440.0,0.00021391,2]
[364294072,1749060642149,-440.0,0.00021391,2]
[364294073,1749060642159,-437.4470544,0.00021391,2]
[364294074,1749060642168,-440.0,0.00021391,2]
[364294075,1749060642177,-434.82409152,0.00021391,2]
[364294077,1749060642191,-440.0,0.00021391,2]
[364294079,1749060642200,-440.0,0.00021391,2]
[364294081,1749060642211,-440.0,0.00021391,2]
[364294083,1749060642221,-440.0,0.00021391,2]
[364294085,1749060642230,-440.0,0.00021391,2]
[364294087,1749060642240,-410.0,0.00021391,2]
[364294089,1749060642250,-151.0,0.00021391,2]
[364294091,1749060642261,-440.0,0.00021391,2]
[364294093,1749060642271,-440.0,0.00021391,2]
[364294095,1749060642281,-151.0,0.00021391,2]
[364294097,1749060642291,-440.0,0.00021391,2]
[364294099,1749060642300,-410.0,0.00021391,2]
[364294101,1749060642310,-151.0,0.00021391,2]
[364294103,1749060642319,-399.812673,0.00021391,2]
[364294105,1749060642330,-440.0,0.00021391,2]
[364294107,1749060642340,-399.812673,0.00021391,2]
[364294109,1749060642350,-440.0,0.00021391,2]
[364294111,1749060642359,-315.77611539,0.00021392,2]
[364294113,1749060642369,-440.0,0.00021392,2]
[364294115,1749060642378,-440.0,0.00021392,2]
[364294117,1749060642388,-440.0,0.00021392,2]
[364294119,1749060642398,-440.0,0.00021392,2]
[364294121,1749060642408,-410.0,0.00021392,2]
[364294123,1749060642418,-440.0,0.00021392,2]
[364294125,1749060642428,-440.0,0.00021392,2]
[364294127,1749060642438,-440.0,0.00021392,2]
[364294129,1749060642447,-454.42560679,0.00021392,2]
[364294131,1749060642457,-265.9579736,0.00021392,2]
[364294133,1749060642466,-410.0,0.00021392,2]
[364294135,1749060642476,-440.0,0.00021392,2]
[364294137,1749060642486,-440.0,0.00021392,2]
[364294139,1749060642497,-225.10810695,0.00021392,2]
[364294141,1749060642507,-410.0,0.00021392,2]
[364294143,1749060642518,-440.0,0.00021392,2]
[364294146,1749060642528,-440.0,0.00021392,2]
[364294148,1749060642538,-440.0,0.00021392,2]
[364294150,1749060642547,-410.0,0.00021392,2]
[364294151,1749060642557,-440.0,0.00021392,2]
[364294153,1749060642566,-440.0,0.00021392,2]
[364294156,1749060642576,-440.0,0.00021392,2]
[364294157,1749060642586,-380.0,0.00021392,2]
[364294159,1749060642596,-440.0,0.00021392,2]
[364294161,1749060642605,-612.31881565,0.00021392,2]
[364294163,1749060642615,-500.0,0.00021421,2]
[364294165,1749060642625,-508.79834576,0.00021421,2]
[364294167,1749060642634,-1000.0,0.00021421,2]
[364294169,1749060642644,-1000.0,0.00021421,2]
[364294171,1749060642654,-440.0,0.00021447,2]
[364294174,1749060642668,-440.0,0.00021447,2]
[364294176,1749060642678,-440.0,0.00021447,2]
[364294178,1749060642687,-440.0,0.00021447,2]
[364294180,1749060642697,-383.39964934,0.00021447,2]
[364294182,1749060642707,-440.0,0.00021447,2]
[364294184,1749060642717,-440.0,0.00021447,2]
[364294186,1749060642726,-440.0,0.00021447,2]
[364294188,1749060642736,-410.0,0.00021447,2]
[364294190,1749060642746,-2996.06106417,0.00021452,5]
[364294192,1749060642756,-176.6037853,0.00021478,2]
[364294194,1749060642768,-306.0,0.00021478,2]
[364294196,1749060642778,-312.5513002,0.00021478,2]
[364294198,1749060642787,-158.575084,0.00021478,2]
[364294200,1749060642799,-1145.4394388,0.00021478,2]
[364294202,1749060642809,-151.0,0.000215,3]
[364294204,1749060642818,-151.0,0.00021582,2]
[364294205,1749060642828,-201.332901,0.00021582,2]
[364294206,1749060642837,-151.0,0.00021582,2]
[364294209,1749060642847,-201.332901,0.00021582,2]
[364294211,1749060642856,-2996.06106417,0.0002159,5]
[364294212,1749060642866,-151.0,0.000216,4]
[364294215,1749060642876,-440.0,0.00021663,2]
[364294217,1749060642885,-440.0,0.00021663,2]
[364294218,1749060642895,-139286.2600552,0.00021664,2]
[364294233,1749060643021,-317697.0773048,0.00021664,2]
[364294236,1749060643031,-440.0,0.00021664,2]
[364294238,1749060643041,-802.75,0.00021664,2]
[364294240,1749060643050,-733.96,0.00021664,2]
[364294242,1749060643061,-440.0,0.00021664,2]
[364294244,1749060643070,-247.06,0.00021664,2]
[364294247,1749060643080,-440.0,0.00021664,2]
[364294249,1749060643089,-440.0,0.00021664,2]
[364294251,1749060643099,-1948.38,0.00021664,2]
[364294253,1749060643108,-440.0,0.00021664,2]
[364294255,1749060643118,-440.0,0.00021664,2]
[364294257,1749060643128,-440.0,0.00021664,2]
[364294260,1749060643138,-440.0,0.00021664,2]
[364294264,1749060643148,-440.0,0.00021664,2]
[364294267,1749060643158,-440.0,0.00021664,2]
[364294271,1749060643168,-440.0,0.00021664,2]
[364294277,1749060643179,-440.0,0.00021664,2]
[364294279,1749060643193,-440.0,0.00021664,2]
[364294282,1749060643204,-475.57,0.00021664,2]
[364294285,1749060643214,-624.88,0.00021664,2]
[364294287,1749060643225,-440.0,0.00021664,2]
[364294290,1749060643235,-440.0,0.00021664,2]
[364294292,1749060643246,-440.0,0.00021664,2]
[364294294,1749060643257,-440.0,0.00021664,2]
[364294296,1749060643268,-440.0,0.00021665,2]
[364294299,1749060643279,-440.0,0.00021665,2]
[364294300,1749060643289,-534.04713032,0.00021665,2]
[364294302,1749060643298,-440.0,0.00021665,2]
[364294304,1749060643308,-400.0,0.00021665,2]
[364294306,1749060643318,-292.43,0.00021665,2]
[364294309,1749060643329,-400.0,0.00021665,2]
[364294311,1749060643339,-400.0,0.00021665,2]
[364294312,1749060643348,-440.0,0.00021665,2]
[364294314,1749060643359,-440.0,0.00021665,2]
[364294316,1749060643368,-400.0,0.00021665,2]
[364294318,1749060643379,-520.34076166,0.00021665,2]
[364294320,1749060643389,-440.0,0.00021665,2]
[364294322,1749060643399,-400.0,0.00021665,2]
[364294324,1749060643408,-440.0,0.00021665,2]
[364294326,1749060643418,-440.0,0.00021665,2]
[364294328,1749060643427,-440.0,0.00021665,2]
[364294330,1749060643437,-440.0,0.00021665,2]
[364294332,1749060643447,-440.0,0.00021665,2]
[364294334,1749060643456,-440.0,0.00021665,2]
[364294336,1749060643466,-440.0,0.00021665,2]
[364294338,1749060643477,-282.09,0.00021665,2]
[364294340,1749060643486,-400.0,0.00021665,2]
[364294342,1749060643496,-520.94,0.00021665,2]
[364294344,1749060643506,-440.0,0.00021665,2]
[364294346,1749060643516,-440.0,0.00021665,2]
[364294348,1749060643525,-565.05,0.00021665,2]
[364294350,1749060643535,-400.0,0.00021665,2]
[364294352,1749060643546,-440.0,0.00021665,2]
[364294354,1749060643556,-440.0,0.00021665,2]
[364294356,1749060643566,-440.0,0.00021665,2]
[364294358,1749060643575,-440.0,0.00021665,2]
[364294360,1749060643585,-400.0,0.00021665,2]
[364294362,1749060643594,-440.0,0.00021665,2]
[364294364,1749060643604,-440.0,0.00021665,2]
[364294366,1749060643613,-440.0,0.00021665,2]
[364294368,1749060643622,-440.0,0.00021665,2]
[364294370,1749060643631,-440.0,0.00021665,2]
[364294372,1749060643641,-440.0,0.00021665,2]
[364294374,1749060643650,-400.0,0.00021665,2]
[364294376,1749060643659,-440.0,0.00021665,2]
[364294378,1749060643669,-440.0,0.00021665,2]
[364294380,1749060643679,-440.0,0.00021665,2]
[364294382,1749060643689,-440.0,0.00021665,2]
[364294384,1749060643698,-433.46,0.00021665,2]
[364294386,1749060643708,-440.0,0.00021665,2]
[364294388,1749060643718,-440.0,0.00021665,2]
[364294390,1749060643729,-400.0,0.00021665,2]
[364294392,1749060643738,-440.0,0.00021665,2]
[364294395,1749060643750,-440.0,0.00021665,2]
[364294396,1749060643759,-440.0,0.00021666,2]
[364294408,1749060643856,-440.0,0.00021666,2]
[364294410,1749060643866,-440.0,0.00021666,2]
[364294412,1749060643875,-440.0,0.00021666,2]
[364294414,1749060643885,-440.0,0.00021666,2]
[364294416,1749060643894,-527.81,0.00021666,2]
[364294418,1749060643903,-440.0,0.00021666,2]
[364294420,1749060643913,-440.0,0.00021666,2]
[364294422,1749060643922,-440.0,0.00021666,2]
[364294424,1749060643932,-500.0,0.00021673,2]
[364294426,1749060643941,-561.77688493,0.00021673,2]
[364294428,1749060643951,-508.513244,0.00021673,2]
[364294430,1749060643961,-500.0,0.00021673,2]
[364294432,1749060643971,-500.0,0.00021673,2]
[364294434,1749060643981,-500.0,0.00021673,2]
[364294436,1749060643992,-600.0,0.00021673,2]
[364294438,1749060644002,-500.0,0.00021673,2]
[364294440,1749060644012,-500.0,0.00021673,2]
[364294442,1749060644023,-2996.06106417,0.00021728,5]
[364294444,1749060644032,-950.55113301,0.00021836,2]
[364294446,1749060644042,-2996.06106417,0.00021866,6]
[364294448,1749060644051,-500.0,0.00021917,2]
[364294450,1749060644060,-440.0,0.00021937,2]
[364294452,1749060644070,-440.0,0.00021937,2]
[364294454,1749060644079,-440.0,0.00021938,2]
[364294456,1749060644089,-802.75,0.00021938,2]
[364294458,1749060644098,-733.96,0.00021938,2]
[364294460,1749060644107,-440.0,0.00021938,2]
[364294462,1749060644117,-440.0,0.00021938,2]
[364294464,1749060644129,-440.0,0.00021938,2]
[364294466,1749060644139,-1948.38,0.00021938,2]
[364294468,1749060644148,-440.0,0.00021938,2]
[364294470,1749060644158,-440.0,0.00021938,2]
[364294472,1749060644167,-440.0,0.00021938,2]
[364294474,1749060644177,-440.0,0.00021938,2]
[364294476,1749060644190,-440.0,0.00021938,2]
[364294478,1749060644199,-440.0,0.00021938,2]
[364294480,1749060644208,-440.0,0.00021938,2]
[364294482,1749060644218,-440.0,0.00021938,2]
[364294484,1749060644227,-440.0,0.00021938,2]
[364294486,1749060644237,-475.57,0.00021938,2]
[364294488,1749060644247,-624.88,0.00021938,2]
[364294490,1749060644257,-440.0,0.00021938,2]
[364294492,1749060644268,-440.0,0.00021938,2]
[364294494,1749060644278,-440.0,0.00021938,2]
[364294496,1749060644288,-440.0,0.00021938,2]
[364294498,1749060644297,-440.0,0.00021939,2]
[364294500,1749060644307,-188.0545317,0.00021939,2]
[364294502,1749060644316,-348.16,0.00021939,2]
[364294504,1749060644326,-440.0,0.00021939,2]
[364294506,1749060644335,-440.0,0.00021939,2]
[364294508,1749060644345,-440.0,0.00021939,2]
[364294510,1749060644354,-440.0,0.00021939,2]
[364294512,1749060644364,-440.0,0.00021939,2]
[364294514,1749060644373,-440.0,0.00021939,2]
[364294516,1749060644383,-440.0,0.00021939,2]
[364294518,1749060644393,-189.00130533,0.00021939,2]
[364294520,1749060644402,-440.0,0.00021939,2]
[364294522,1749060644412,-440.0,0.00021939,2]
[364294524,1749060644421,-565.05,0.00021939,2]
[364294526,1749060644430,-440.0,0.00021939,2]
[364294528,1749060644440,-440.0,0.00021939,2]
[364294530,1749060644449,-440.0,0.00021939,2]
[364294532,1749060644458,-440.0,0.00021939,2]
[364294534,1749060644468,-440.0,0.00021939,2]
[364294536,1749060644477,-440.0,0.00021939,2]
[364294538,1749060644487,-390.0,0.00021939,2]
[364294540,1749060644497,-440.0,0.00021939,2]
[364294542,1749060644507,-440.0,0.00021939,2]
[364294544,1749060644516,-440.0,0.00021939,2]
[364294545,1749060644526,-440.0,0.00021939,2]
[364294547,1749060644535,-440.0,0.00021939,2]
[364294549,1749060644546,-440.0,0.00021939,2]
[364294552,1749060644556,-440.0,0.00021939,2]
[364294553,1749060644566,-440.0,0.00021939,2]
[364294555,1749060644575,-440.0,0.00021939,2]
[364294557,1749060644584,-440.0,0.00021939,2]
[364294559,1749060644594,-440.0,0.00021939,2]
[364294561,1749060644603,-440.0,0.0002194,2]
[364294564,1749060644613,-390.0,0.0002194,2]
[364294566,1749060644623,-440.0,0.0002194,2]
[364294567,1749060644632,-440.0,0.0002194,2]
[364294570,1749060644642,-440.0,0.0002194,2]
[364294572,1749060644652,-440.0,0.0002194,2]
[364294574,1749060644662,-457.01837885,0.0002194,2]
[364294576,1749060644671,-500.0,0.00021968,2]
[364294578,1749060644681,-503.32066576,0.00021968,2]
[364294580,1749060644690,-92604.54,0.00022,7]
[364294582,1749060644700,-151.0,0.00022,7]
[364294584,1749060644709,-151.0,0.00022,7]
[364294586,1749060644718,-151.0,0.00022,7]
[364294588,1749060644727,-151.0,0.00022,7]
[364294590,1749060644737,-151.0,0.00022,7]
[364294592,1749060644749,-151.0,0.00022,7]
[364294594,1749060644758,-151.0,0.00022,7]
[364294596,1749060644768,-151.0,0.00022,7]
[364294598,1749060644777,-151.0,0.00022,7]
[364294600,1749060644787,-151.0,0.00022,7]
[364294602,1749060644796,-201.332901,0.00022,7]
[364294604,1749060644805,-151.0,0.00022,7]
[364294606,1749060644815,-201.332901,0.00022,7]
[364294608,1749060644824,-151.0,0.00022,7]
[364294610,1749060644833,-151.0,0.00022,7]
[364294612,1749060644843,-151.0,0.00022,7]
[364294614,1749060644852,-151.0,0.00022,7]
[364294616,1749060644862,-399.812673,0.00022,2]
[364294618,1749060644871,-399.812673,0.00022,2]
[364294620,1749060644881,-2996.06106417,0.00022003,6]
[364294622,1749060644890,-1680.0,0.00022088,2]
[364294624,1749060644899,-151.0,0.00022106,2]
[364294626,1749060644909,-2996.06106417,0.00022141,6]
[364294628,1749060644919,-500.0,0.00022165,2]
[364294630,1749060644929,-440.0,0.00022166,2]
[364294632,1749060644938,-440.0,0.00022166,2]
[364294634,1749060644947,-440.0,0.00022166,2]
[364294636,1749060644957,-440.0,0.00022166,2]
[364294638,1749060644966,-720.9,0.00022166,2]
[364294640,1749060644975,-440.0,0.00022166,2]
[364294642,1749060644985,-440.0,0.00022166,2]
[364294644,1749060644996,-440.0,0.00022166,2]
[364294647,1749060645007,-440.0,0.00022166,2]
[364294649,1749060645016,-440.0,0.00022166,2]
[364294650,1749060645026,-440.0,0.00022166,2]
[364294652,1749060645036,-440.0,0.00022166,2]
[364294655,1749060645047,-402.7155122,0.00022166,2]
[364294657,1749060645056,-440.0,0.00022166,2]
[364294659,1749060645067,-753.61,0.00022166,2]
[364294661,1749060645076,-440.0,0.00022166,2]
[364294663,1749060645086,-402.46978806,0.00022166,2]
[364294664,1749060645096,-500.0,0.00022167,2]
[364294666,1749060645105,-151.0,0.000222,7]
[364294669,1749060645115,-440.0,0.00022211,2]
[364294671,1749060645125,-440.0,0.00022211,2]
[364294672,1749060645135,-440.0,0.00022212,2]
[364294675,1749060645145,-802.75,0.00022212,2]
[364294677,1749060645155,-733.96,0.00022212,2]
[364294679,1749060645165,-419.67,0.00022212,2]
[364294681,1749060645174,-440.0,0.00022212,2]
[364294682,1749060645187,-440.0,0.00022212,2]
[364294685,1749060645198,-1948.38,0.00022212,2]
[364294686,1749060645207,-440.0,0.00022212,2]
[364294689,1749060645218,-440.0,0.00022212,2]
[364294691,1749060645227,-440.0,0.00022212,2]
[364294693,1749060645236,-440.0,0.00022212,2]
[364294694,1749060645246,-440.0,0.00022212,2]
[364294697,1749060645258,-440.0,0.00022212,2]
[364294699,1749060645269,-440.0,0.00022212,2]
[364294701,1749060645278,-440.0,0.00022212,2]
[364294703,1749060645288,-440.0,0.00022212,2]
[364294705,1749060645298,-475.57,0.00022212,2]
[364294706,1749060645308,-624.88,0.00022212,2]
[364294708,1749060645317,-440.0,0.00022212,2]
[364294710,1749060645327,-440.0,0.00022212,2]
[364294712,1749060645337,-440.0,0.00022212,2]
[364294714,1749060645349,-440.0,0.00022212,2]
[364294716,1749060645359,-440.0,0.00022213,2]
[364294719,1749060645370,-440.0,0.00022213,2]
[364294720,1749060645380,-440.0,0.00022213,2]
[364294722,1749060645390,-285.78953446,0.00022213,2]
[364294725,1749060645400,-440.0,0.00022213,2]
[364294727,1749060645410,-440.0,0.00022213,2]
[364294729,1749060645419,-440.0,0.00022213,2]
[364294731,1749060645429,-440.0,0.00022213,2]
[364294733,1749060645439,-440.0,0.00022213,2]
[364294735,1749060645447,-440.0,0.00022213,2]
[364294737,1749060645457,-565.05,0.00022213,2]
[364294739,1749060645466,-440.0,0.00022213,2]
[364294741,1749060645476,-440.0,0.00022213,2]
[364294743,1749060645484,-440.0,0.00022213,2]
[364294745,1749060645495,-440.0,0.00022213,2]
[364294747,1749060645507,-440.0,0.00022213,2]
[364294749,1749060645516,-440.0,0.00022213,2]
[364294759,1749060645601,-440.0,0.00022213,2]
[364294761,1749060645612,-440.0,0.00022213,2]
[364294763,1749060645622,-440.0,0.00022213,2]
[364294765,1749060645632,-440.0,0.00022213,2]
[364294767,1749060645641,-440.0,0.00022213,2]
[364294769,1749060645651,-440.0,0.00022213,2]
[364294771,1749060645660,-440.0,0.00022213,2]
[364294773,1749060645670,-440.0,0.00022213,2]
[364294775,1749060645679,-440.0,0.00022213,2]
[364294777,1749060645687,-440.0,0.00022213,2]
[364294779,1749060645697,-440.0,0.00022213,2]
[364294781,1749060645706,-440.0,0.00022214,2]
[364294783,1749060645715,-440.0,0.00022214,2]
[364294785,1749060645724,-440.0,0.00022214,2]
[364294787,1749060645733,-440.0,0.00022214,2]
[364294789,1749060645743,-1000.0,0.00022221,2]
[364294791,1749060645753,-1000.0,0.00022221,2]
[364294793,1749060645764,-1000.0,0.00022221,2]
[364294795,1749060645774,-1000.0,0.00022221,2]
[364294797,1749060645784,-1000.0,0.00022221,2]
[364294800,1749060645797,-1200.0,0.00022221,2]
[364294802,1749060645806,-1000.0,0.00022221,2]
[364294804,1749060645816,-1400.0,0.0002226,2]
[364294806,1749060645825,-2583.7288323,0.00022279,6]
[364294808,1749060645839,-412.33223187,0.00022279,6]
[364294810,1749060645849,-276.58743175,0.00022297,2]
[364294812,1749060645861,-1611.41256825,0.00022297,2]
[364294815,1749060645870,-207.4,0.00022297,2]